fUSD/lending_fUSD_20240613
["ID","MTS","AMOUNT","RATE_DAILY","PERIOD"]
[329345680,1718263846211,-444.49599218,0.00019178,2]
[329345698,1718263846331,-55.50400782,0.00019178,2]
[329345701,1718263846341,-500.0,0.00019178,2]
[329345704,1718263846353,-388.33564085,0.00019178,2]
[329345705,1718263846365,-33.95579034,0.00019178,2]
[329345708,1718263846380,-336.22886729,0.00019178,2]
[329345711,1718263846394,-129.81534237,0.00019178,2]
[329345713,1718263846405,-418.79539966,0.00019178,2]
[329345714,1718263846415,-501.67170417,0.00019178,2]
[329345716,1718263846429,-500.0,0.00019178,2]
[329345719,1718263846440,-245.64379796,0.00019178,2]
[329345724,1718263846456,-500.0,0.00019178,2]
[329345728,1718263846498,-193.96042199,0.00019178,2]
[329345732,1718263846530,-318.79220796,0.00019178,2]
[329345734,1718263846545,-500.0,0.00019178,2]
[329345737,1718263846556,-386.66169234,0.00019178,2]
[329345739,1718263846567,-500.0,0.00019178,2]
[329345742,1718263846579,-500.0,0.00019178,2]
[329345745,1718263846592,-453.89,0.00019178,2]
[329345749,1718263846607,-1155.36,0.00019411,2]
[329345751,1718263846619,-797.47711022,0.000195,2]
[329345754,1718263846633,-2364.31218,0.0001978,2]
[329345757,1718263846643,-685.45225907,0.000199,3]
[329345760,1718263846658,-325.09936481,0.000199,2]
[329345762,1718263846671,-155.7899877,0.0002,2]
[329345764,1718263846686,-1013.29291419,0.0002,2]
[329345767,1718263846698,-155.0,0.0002,2]
[329345769,1718263846710,-1780.9840789,0.0002,2]
[329345772,1718263846722,-1291.62972997,0.0002,2]
[329345777,1718263846758,-6283.71863153,0.0002,2]
[329345780,1718263846770,-187.783832,0.0002,2]
[329345783,1718263846801,-155.0,0.0002,2]
[329345787,1718263846812,-156.46527069,0.0002,4]
[329345790,1718263846827,-865.52345367,0.0002,2]
[329345793,1718263846837,-155.0,0.0002,2]
[329345796,1718263846848,-305.0,0.0002,2]
[329345799,1718263846860,-213.0,0.0002,2]
[329345804,1718263846887,-1761.06242246,0.0002,2]
[329345806,1718263846897,-7516.31301777,0.0002,2]
[329345810,1718263846914,-510.21195869,0.0002,2]
[329345812,1718263846939,-684.26472482,0.0002,2]
[329345816,1718263846951,-202.29967265,0.0002,2]
[329345818,1718263846963,-3896.31762119,0.0002,2]
[329345821,1718263846978,-365.85640923,0.0002,2]
[329345823,1718263846990,-150.0,0.0002,2]
[329345826,1718263847005,-150.0,0.0002,2]
[329345827,1718263847020,-226.76270483,0.000201,2]
[329345829,1718263847038,-353.67,0.00020137,2]
[329345832,1718263847050,-422.94,0.00020137,2]
[329345834,1718263847063,-353.67,0.00020137,2]
[329345837,1718263847075,-422.94,0.00020137,2]
[329345840,1718263847085,-569.64,0.00020137,2]
[329345843,1718263847099,-526.76,0.00020137,2]
[329345846,1718263847111,-422.94,0.00020137,2]
[329345850,1718263847130,-353.67,0.00020137,2]
[329345853,1718263847144,-1053.31,0.00020137,2]
[329345856,1718263847164,-422.94,0.00020137,2]
[329345860,1718263847184,-526.76,0.00020137,2]
[329345864,1718263847209,-353.67,0.00020137,2]
[329345868,1718263847221,-422.94,0.00020137,2]
[329345873,1718263847233,-526.76,0.00020137,2]
[329345876,1718263847250,-375.12,0.00020137,2]
[329345879,1718263847264,-353.67,0.00020137,2]
[329345883,1718263847275,-526.76,0.00020137,2]
[329345886,1718263847297,-353.67,0.00020137,2]
[329345891,1718263847324,-526.76,0.00020137,2]
[329345897,1718263847343,-353.67,0.00020137,2]
[329345900,1718263847357,-530.24,0.00020137,2]
[329345902,1718263847377,-329.7,0.00020137,2]
[329345906,1718263847387,-150.0,0.00020223,2]
[329345910,1718263847398,-177.91,0.00020369,2]
[329345913,1718263847408,-983.94,0.00020407,2]
[329345916,1718263847419,-1000.0,0.00020432,2]
[329345918,1718263847433,-150.0,0.000205,2]
[329345921,1718263847452,-150.0,0.000205,2]
[329345924,1718263847479,-171.14,0.00020548,2]
[329345926,1718263847493,-19705.55821115,0.000207,2]
[329345929,1718263847515,-250.0,0.00020771,2]
[329345932,1718263847539,-1442.02437801,0.00021,2]
[329345934,1718263847554,-1250.0,0.00021,2]
[329345937,1718263847565,-150.0,0.00021,2]
[329345940,1718263847580,-150.0,0.00021,2]
[329345943,1718263847593,-500.0,0.00021,2]
[329345946,1718263847604,-500.0,0.00021,2]
[329345949,1718263847617,-500.0,0.00021,2]
[329345952,1718263847652,-500.0,0.00021,2]
[329345955,1718263847668,-500.0,0.00021,2]
[329345959,1718263847685,-500.0,0.00021,2]
[329345961,1718263847701,-2364.31217,0.0002102,2]
[329345963,1718263847715,-1531.39045969,0.000211,2]
[329345967,1718263847733,-299.20635849,0.0002114,2]
[329345970,1718263847745,-1672.9149936,0.000212,2]
[329345972,1718263847758,-350.0,0.00021319,2]
[329345976,1718263847809,-515.02,0.0002137,2]
[329345981,1718263847841,-3029.0,0.000214,2]
[329345983,1718263847851,-150.0,0.000215,3]
[329345987,1718263847890,-150.0,0.000215,3]
[329345990,1718263847901,-549.80799651,0.000216,2]
[329345993,1718263847915,-549.80799651,0.000216,2]
[329345996,1718263847935,-151.0,0.00021718,2]
[329345999,1718263847947,-151.0,0.00021718,2]
[329346002,1718263847961,-151.0,0.00021718,2]
[329346004,1718263847975,-151.0,0.00021718,2]
[329346007,1718263847989,-151.0,0.00021718,2]
[329346010,1718263848005,-151.0,0.00021718,2]
[329346015,1718263848017,-151.0,0.00021718,2]
[329346018,1718263848038,-151.0,0.00021718,2]
[329346021,1718263848084,-151.0,0.00021718,2]
[329346023,1718263848101,-151.0,0.00021718,2]
[329346026,1718263848128,-152.657105,0.00021718,2]
[329346029,1718263848141,-285.037062,0.00021718,2]
[329346032,1718263848152,-151.0,0.00021718,2]
[329346035,1718263848169,-151.0,0.00021718,2]
[329346039,1718263848184,-219.313199,0.00021718,2]
[329346041,1718263848194,-151.984882,0.00021718,2]
[329346045,1718263848225,-258.224213,0.00021718,2]
[329346047,1718263848241,-155.162428,0.00021718,2]
[329346049,1718263848252,-151.0,0.00021718,2]
[329346053,1718263848268,-151.0,0.00021718,2]
[329346055,1718263848280,-151.0,0.00021718,2]
[329346057,1718263848291,-151.0,0.00021718,2]
[329346060,1718263848304,-199.754266,0.00021718,2]
[329346063,1718263848315,-199.754266,0.00021718,2]
[329346066,1718263848327,-526.76,0.00021781,2]
[329346070,1718263848348,-526.76,0.00021781,2]
[329346075,1718263848383,-526.76,0.00021781,2]
[329346078,1718263848396,-526.76,0.00021781,2]
[329346081,1718263848410,-526.76,0.00021781,2]
[329346084,1718263848427,-254.07445159,0.00021867,2]
[329346087,1718263848443,-154.821468,0.000219,2]
[329346091,1718263848501,-151.0,0.000219,2]
[329346094,1718263848528,-151.0,0.000219,2]
[329346096,1718263848540,-1000.0,0.000219,2]
[329346100,1718263848552,-633.325383,0.000219,2]
[329346102,1718263848573,-633.325383,0.000219,2]
[329346105,1718263848584,-188.837234,0.000219,2]
[329346107,1718263848608,-240.23,0.00021918,2]
[329346124,1718263848777,-552.01,0.00021918,2]
[329346129,1718263848812,-536.9,0.00021918,2]
[329346131,1718263848828,-250.0,0.00021918,2]
[329346133,1718263848867,-151.0,0.00021918,7]
[329346135,1718263848880,-151.0,0.00021918,7]
[329346137,1718263848899,-273.123004,0.00021918,7]
[329346139,1718263848927,-3242.65995362,0.00022,10]
[329346141,1718263848956,-793.07098815,0.00022,2]
[329346143,1718263848972,-704.7575962,0.00022,5]
[329346145,1718263849001,-723.35644976,0.00022,2]
[329346148,1718263849036,-150.0,0.00022,3]
[329346149,1718263849063,-150.0,0.00022,3]
[329346151,1718263849084,-454.855,0.0002216,2]
[329346152,1718263849136,-811.0,0.0002216,2]
[329346154,1718263849148,-2407.0,0.0002216,2]
[329346156,1718263849162,-159.388,0.0002216,2]
[329346158,1718263849177,-3178.0,0.0002216,2]
[329346160,1718263849214,-1980.0,0.0002216,2]
[329346162,1718263849227,-644.406,0.0002216,2]
[329346165,1718263849248,-1318.839,0.0002216,2]
[329346166,1718263849260,-38088.0,0.0002216,2]
[329346169,1718263849293,-5210.575,0.0002216,2]
[329346171,1718263849310,-5852.539,0.0002216,2]
[329346172,1718263849373,-456.967,0.0002216,2]
[329346174,1718263849388,-304.228,0.0002216,2]
[329346176,1718263849407,-1830.0,0.0002216,2]
[329346178,1718263849419,-1195.0,0.0002216,2]
[329346180,1718263849435,-194.978,0.0002216,2]
[329346182,1718263849447,-1658.0,0.0002216,2]
[329346184,1718263849480,-442.0,0.0002216,2]
[329346186,1718263849492,-151.0,0.0002216,7]
[329346188,1718263849502,-151.0,0.0002216,7]
[329346190,1718263849514,-151.940579,0.0002216,7]
[329346192,1718263849537,-155.573894,0.0002216,7]
[329346194,1718263849562,-156.910016,0.0002216,7]
[329346196,1718263849586,-151.0,0.0002216,7]
[329346198,1718263849597,-156.910016,0.0002216,7]
[329346200,1718263849610,-151.0,0.0002216,7]
[329346202,1718263849635,-190.85369923,0.000224,2]
[329346205,1718263849654,-33275.2032387,0.000225,2]
[329346206,1718263849668,-150.0,0.000225,3]
[329346209,1718263849708,-150.0,0.000225,3]
[329346211,1718263849726,-983.94,0.00022671,2]
[329346213,1718263849746,-155.0,0.000227,2]
[329346215,1718263849760,-187.19211225,0.000229,2]
[329346217,1718263849773,-174.36890067,0.000229,2]
[329346219,1718263849796,-13409.83387315,0.000229,2]
[329346222,1718263849821,-177.91,0.00022915,2]
[329346223,1718263849843,-151.95,0.0002299,2]
[329346225,1718263849857,-216.95437366,0.00023,2]
[329346229,1718263849869,-30728.02351042,0.00023,2]
[329346231,1718263849910,-157514.4890783,0.00023,2]
[329346232,1718263849921,-1300.0,0.00023,2]
[329346235,1718263849939,-152.404049,0.00023,7]
[329346236,1718263849951,-151.0,0.00023,7]
[329346239,1718263849996,-151.0,0.00023,7]
[329346241,1718263850008,-151.0,0.00023,7]
[329346243,1718263850028,-151.035505,0.00023,7]
[329346244,1718263850040,-151.035505,0.00023,7]
[329346245,1718263850055,-159.467514,0.00023,7]
[329346247,1718263850077,-151.0,0.00023,7]
[329346249,1718263850096,-151.0,0.00023,7]
[329346251,1718263850126,-542.1787713,0.00023,2]
[329346253,1718263850142,-151.0,0.00023,7]
[329346255,1718263850162,-151.0,0.00023,7]
[329346257,1718263850183,-155.296556,0.00023,7]
[329346259,1718263850246,-151.0,0.00023,7]
[329346260,1718263850267,-151.0,0.00023,7]
[329346262,1718263850288,-152.62397,0.00023,7]
[329346263,1718263850302,-151.0,0.00023,7]
[329346264,1718263850318,-151.0,0.00023,7]
[329346265,1718263850347,-151.0,0.00023,7]
[329346266,1718263850383,-218.184859,0.00023,7]
[329346267,1718263850396,-151.0,0.00023,7]
[329346268,1718263850417,-151.0,0.00023,7]
[329346269,1718263850433,-151.0,0.00023,7]
[329346270,1718263850445,-151.0,0.00023,7]
[329346271,1718263850476,-155.178297,0.00023,7]
[329346272,1718263850496,-243.757524,0.00023,7]
[329346273,1718263850508,-151.0,0.00023,7]
[329346274,1718263850518,-151.0,0.00023,7]
[329346275,1718263850530,-156.607909,0.00023,7]
[329346276,1718263850552,-151.0,0.00023,7]
[329346277,1718263850562,-633.325383,0.00023,7]
[329346278,1718263850571,-633.325383,0.00023,7]
[329346279,1718263850593,-151.0,0.00023,7]
[329346280,1718263850603,-166.806241,0.00023,7]
[329346281,1718263850621,-151.0,0.00023,7]
[329346282,1718263850633,-151.0,0.00023,7]
[329346283,1718263850644,-25318.78802546,0.00023,2]
[329346284,1718263850655,-151.0,0.00023,7]
[329346285,1718263850666,-159.117603,0.00023,7]
[329346286,1718263850677,-199.754266,0.00023,7]
[329346287,1718263850694,-199.754266,0.00023,7]
[329346288,1718263850711,-156.910016,0.00023,7]
[329346289,1718263850727,-151.0,0.00023,7]
[329346290,1718263850738,-156.910016,0.00023,7]
[329346291,1718263850753,-151.0,0.00023,7]
[329346293,1718263850769,-156.722354,0.00023,7]
[329346296,1718263850812,-158.713081,0.00023,7]
[329346297,1718263850827,-254.807645,0.00023,7]
[329346298,1718263850846,-152.88121,0.00023,7]
[329346299,1718263850874,-151.0,0.00023,7]
[329346300,1718263850888,-710.012345,0.00023,7]
[329346301,1718263850900,-710.012345,0.00023,7]
[329346302,1718263850913,-151.0,0.00023,7]
[329346303,1718263850927,-152.052186,0.00023,7]
[329346304,1718263850970,-151.0,0.00023,7]
[329346306,1718263850996,-257.48953,0.00023,7]
[329346307,1718263851022,-168.226083,0.00023,7]
[329346308,1718263851036,-152.962319,0.00023,7]
[329346310,1718263851060,-151.0,0.00023,7]
[329346312,1718263851071,-151.0,0.00023,7]
[329346313,1718263851085,-151.0,0.00023,7]
[329346314,1718263851097,-151.0,0.00023,7]
[329346315,1718263851109,-151.0,0.00023,7]
[329346316,1718263851125,-150.0,0.00023,3]
[329346317,1718263851153,-150.0,0.00023,3]
[329346318,1718263851164,-151.0,0.00023,7]
[329346319,1718263851179,-151.0,0.00023,7]
[329346320,1718263851201,-151.0,0.00023,7]
[329346321,1718263851215,-150.069,0.0002314,2]
[329346322,1718263851234,-150.059,0.0002314,2]
[329346323,1718263851245,-150.164,0.0002314,2]
[329346324,1718263851261,-227.0,0.0002315,2]
[329346325,1718263851275,-7500.0,0.00023188,2]
[329346326,1718263851287,-433.15087469,0.00023188,2]
[329346327,1718263851302,-260.88,0.00023288,2]
[329346328,1718263851326,-380.0,0.00023288,2]
[329346329,1718263851358,-380.64,0.00023288,2]
[329346330,1718263851376,-417.69,0.00023288,2]
[329346331,1718263851388,-851.39,0.00023288,2]
[329346332,1718263851409,-151.0,0.00023288,7]
[329346335,1718263851445,-151.0,0.00023288,7]
[329346336,1718263851478,-1531.39045969,0.000233,2]
[329346337,1718263851489,-150.0,0.00023425,2]
[329346338,1718263851501,-150.0,0.00023425,2]
[329346339,1718263851512,-1205.44507841,0.00023457,2]
[329346340,1718263851528,-10000.0,0.000235,2]
[329346341,1718263851543,-1000.0,0.000235,2]
[329346342,1718263851555,-150.0,0.000235,3]
[329346343,1718263851577,-150.0,0.000235,3]
[329346344,1718263851590,-13409.83387308,0.00023536,2]
[329346345,1718263851600,-117407.61987534,0.000236,2]
[329346346,1718263851618,-290.402344,0.000236,7]
[329346347,1718263851635,-151.035505,0.000236,7]
[329346348,1718263851648,-151.035505,0.000236,7]
[329346349,1718263851659,-280.327542,0.000236,7]
[329346350,1718263851685,-151.0,0.000236,7]
[329346351,1718263851696,-262.920877,0.000236,7]
[329346352,1718263851711,-151.0,0.000236,7]
[329346353,1718263851722,-197.432921,0.000236,7]
[329346354,1718263851755,-152.885269,0.000236,7]
[329346355,1718263851767,-156.608186,0.000236,7]
[329346356,1718263851780,-151.0,0.000236,7]
[329346357,1718263851790,-151.0,0.000236,7]
[329346358,1718263851801,-151.0,0.000236,7]
[329346359,1718263851814,-301.116906,0.000236,7]
[329346360,1718263851824,-151.0,0.000236,7]
[329346361,1718263851835,-151.0,0.000236,7]
[329346362,1718263851847,-151.0,0.000236,7]
[329346363,1718263851858,-151.0,0.000236,7]
[329346364,1718263851870,-153.709144,0.000236,7]
[329346365,1718263851880,-633.325383,0.000236,7]
[329346366,1718263851893,-633.325383,0.000236,7]
[329346367,1718263851916,-151.0,0.000236,7]
[329346368,1718263851939,-151.0,0.000236,7]
[329346369,1718263851956,-151.0,0.000236,7]
[329346370,1718263851969,-199.754266,0.000236,7]
[329346371,1718263851998,-199.754266,0.000236,7]
[329346372,1718263852042,-156.910016,0.000236,7]
[329346373,1718263852053,-151.0,0.000236,7]
[329346374,1718263852069,-156.910016,0.000236,7]
[329346375,1718263852096,-172.906139,0.000236,7]
[329346376,1718263852116,-151.0,0.000236,7]
[329346377,1718263852135,-710.012345,0.000236,7]
[329346378,1718263852149,-710.012345,0.000236,7]
[329346379,1718263852160,-151.0,0.000236,7]
[329346380,1718263852174,-271.377185,0.000236,7]
[329346381,1718263852196,-151.0,0.000236,7]
[329346382,1718263852217,-151.0,0.000236,7]
[329346383,1718263852232,-163.096147,0.000236,7]
[329346384,1718263852246,-152.782675,0.000236,7]
[329346385,1718263852273,-209.863805,0.000236,7]
[329346386,1718263852286,-188.612147,0.000236,7]
[329346387,1718263852306,-165.733995,0.000236,7]
[329346388,1718263852317,-155.0,0.000238,2]
[329346389,1718263852340,-661.17512556,0.0002381,2]
[329346390,1718263852358,-150.0,0.00023898,2]
[329346391,1718263852377,-190.85369923,0.000239,2]
[329346392,1718263852387,-150.0,0.00023901,2]
[329346393,1718263852405,-150.0,0.00023982,2]
[329346394,1718263852416,-150.0,0.00023992,2]
[329346395,1718263852430,-460.27824663,0.00024,2]
[329346396,1718263852446,-50181.85356985,0.00024,3]
[329346397,1718263852472,-35492.51312467,0.00024,15]
[329346398,1718263852500,-150.0,0.00024,4]
[329346399,1718263852511,-150.0,0.00024,4]
[329346400,1718263852541,-176.0,0.00024,2]
[329346401,1718263852553,-172.2328382,0.00024015,2]
[329346402,1718263852583,-150.0,0.0002406,2]
[329346403,1718263852605,-153.75465886,0.00024067,2]
[329346404,1718263852619,-1500.0,0.00024073,2]
[329346405,1718263852631,-151.68681028,0.00024082,2]
[329346406,1718263852648,-227.0,0.0002409,2]
[329346407,1718263852665,-150.0,0.00024096,2]
[329346408,1718263852677,-150.0,0.00024097,2]
[329346409,1718263852691,-159.21083707,0.00024106,2]
[329346410,1718263852701,-1000.0,0.00024109,2]
[329346411,1718263852722,-484.57704821,0.00024109,2]
[329346412,1718263852741,-500.0,0.00024109,2]
[329346413,1718263852751,-500.0,0.00024109,2]
[329346414,1718263852770,-500.0,0.00024109,2]
[329346415,1718263852782,-500.0,0.00024109,2]
[329346416,1718263852793,-508.18970231,0.00024109,2]
[329346417,1718263852806,-155.3750001,0.00024109,2]
[329346418,1718263852818,-627.37372682,0.00024109,2]
[329346419,1718263852831,-8980.95438818,0.00024109,2]
[329346420,1718263852843,-166.5341531,0.00024135,2]
[329346421,1718263852856,-153.75465886,0.00024151,2]
[329346422,1718263852869,-150.0,0.00024155,2]
[329346423,1718263852885,-13409.83387308,0.00024173,2]
[329346424,1718263852897,-150.0,0.00024176,2]
[329346425,1718263852911,-150.0,0.0002418,2]
[329346426,1718263852928,-150.0,0.00024181,2]
[329346427,1718263852941,-150.0,0.00024184,2]
[329346428,1718263852965,-1500.0,0.00024208,2]
[329346429,1718263852977,-1359.36243748,0.00024223,2]
[329346430,1718263852988,-171.18212071,0.00024223,2]
[329346431,1718263853000,-150.0,0.00024225,2]
[329346432,1718263853011,-180.0,0.0002423,2]
[329346433,1718263853023,-166.5341531,0.00024241,2]
[329346434,1718263853034,-1373.7460651,0.00024245,2]
[329346435,1718263853044,-417.69,0.00024247,2]
[329346436,1718263853059,-851.39,0.00024247,2]
[329346437,1718263853071,-417.69,0.00024247,2]
[329346438,1718263853097,-851.39,0.00024247,2]
[329346439,1718263853143,-851.39,0.00024247,2]
[329346440,1718263853161,-417.69,0.00024247,2]
[329346441,1718263853191,-851.39,0.00024247,2]
[329346442,1718263853202,-417.69,0.00024247,2]
[329346443,1718263853220,-851.39,0.00024247,2]
[329346444,1718263853244,-417.69,0.00024247,2]
[329346445,1718263853265,-417.69,0.00024247,2]
[329346446,1718263853276,-851.39,0.00024247,2]
[329346447,1718263853288,-851.39,0.00024247,2]
[329346448,1718263853307,-417.69,0.00024247,2]
[329346449,1718263853318,-417.69,0.00024247,2]
[329346450,1718263853344,-851.39,0.00024247,2]
[329346451,1718263853382,-417.69,0.00024247,2]
[329346452,1718263853515,-851.39,0.00024247,2]
[329346453,1718263853538,-417.69,0.00024247,2]
[329346454,1718263853564,-851.39,0.00024247,2]
[329346455,1718263853576,-417.69,0.00024247,2]
[329346456,1718263853588,-849.29,0.00024247,2]
[329346457,1718263853608,-417.69,0.00024247,2]
[329346458,1718263853626,-417.69,0.00024247,2]
[329346459,1718263853638,-409.83,0.00024247,2]
[329346460,1718263853649,-1702.78,0.00024247,2]
[329346461,1718263853666,-835.38,0.00024247,2]
[329346462,1718263853680,-161.12,0.00024247,2]
[329346463,1718263853693,-150.0,0.00024247,2]
[329346464,1718263853703,-422.7,0.00024247,2]
[329346465,1718263853712,-150.0,0.00024247,2]
[329346466,1718263853740,-150.0,0.00024247,2]
[329346467,1718263853758,-164.22,0.00024247,2]
[329346468,1718263853770,-353.49,0.00024247,2]
[329346469,1718263853782,-150.0,0.00024247,2]
[329346470,1718263853809,-162.98024387,0.00024252,2]
[329346471,1718263853823,-240.29069126,0.00024259,2]
[329346472,1718263853836,-150.0,0.00024261,2]
[329346473,1718263853850,-155.20948984,0.00024268,2]
[329346474,1718263853880,-150.0,0.00024285,2]
[329346475,1718263853892,-159.21083707,0.00024286,2]
[329346476,1718263853928,-250000.0,0.000243,2]
[329346477,1718263853978,-151.035505,0.000243,7]
[329346478,1718263853997,-151.035505,0.000243,7]
[329346479,1718263854018,-151.0,0.000243,7]
[329346480,1718263854035,-151.0,0.000243,7]
[329346481,1718263854067,-151.0,0.000243,7]
[329346482,1718263854110,-153.312247,0.000243,7]
[329346483,1718263854124,-151.0,0.000243,7]
[329346484,1718263854137,-151.0,0.000243,7]
[329346485,1718263854149,-223.819886,0.000243,7]
[329346486,1718263854161,-166.118662,0.000243,7]
[329346487,1718263854173,-151.0,0.000243,7]
[329346488,1718263854187,-633.325383,0.000243,7]
[329346489,1718263854199,-633.325383,0.000243,7]
[329346490,1718263854221,-151.0,0.000243,7]
[329346491,1718263854237,-151.0,0.000243,7]
[329346492,1718263854271,-248.162153,0.000243,7]
[329346493,1718263854282,-199.754266,0.000243,7]
[329346494,1718263854305,-199.754266,0.000243,7]
[329346495,1718263854318,-156.910016,0.000243,7]
[329346496,1718263854330,-151.0,0.000243,7]
[329346497,1718263854344,-156.910016,0.000243,7]
[329346498,1718263854367,-151.0,0.000243,7]
[329346499,1718263854379,-710.012345,0.000243,7]
[329346500,1718263854401,-710.012345,0.000243,7]
[329346501,1718263854413,-151.0,0.000243,7]
[329346502,1718263854477,-151.0,0.000243,7]
[329346503,1718263854489,-151.0,0.000243,7]
[329346504,1718263854499,-166.5341531,0.00024318,2]
[329346505,1718263854509,-150.0,0.00024319,2]
[329346506,1718263854521,-948.25766331,0.00024329,2]
[329346507,1718263854538,-150.0,0.0002433,2]
[329346508,1718263854549,-300.0,0.00024345,2]
[329346509,1718263854564,-166.5341531,0.00024348,2]
[329346510,1718263854580,-157.65,0.00024384,2]
[329346511,1718263854598,-302.7,0.00024384,2]
[329346512,1718263854621,-282.56,0.00024384,2]
[329346513,1718263854633,-156.52,0.00024384,2]
[329346514,1718263854649,-1500.0,0.00024386,2]
[329346515,1718263854660,-159.21083707,0.00024406,2]
[329346516,1718263854672,-154.59154198,0.00024407,2]
[329346517,1718263854685,-150.0,0.00024417,2]
[329346518,1718263854696,-300.0,0.00024419,2]
[329346519,1718263854708,-150.0,0.0002442,2]
[329346520,1718263854737,-150.0,0.00024433,2]
[329346521,1718263854749,-151.68681028,0.00024449,2]
[329346522,1718263854760,-1500.0,0.00024452,2]
[329346523,1718263854773,-150.0,0.00024468,2]
[329346524,1718263854789,-150.0,0.0002448,2]
[329346525,1718263854804,-491.54199856,0.00024485,2]
[329346526,1718263854819,-150.0,0.00024491,2]
[329346527,1718263854856,-491.54199856,0.00024498,2]
[329346528,1718263854869,-1132.41787967,0.000245,3]
[329346529,1718263854880,-150.0,0.000245,4]
[329346530,1718263854890,-150.0,0.000245,4]
[329346531,1718263854913,-151.54705947,0.00024534,2]
[329346532,1718263854924,-150.0,0.00024536,2]
[329346533,1718263854941,-300.16164722,0.00024537,2]
[329346534,1718263854953,-153.75465886,0.00024538,2]
[329346535,1718263854964,-150.0,0.00024555,2]
[329346536,1718263854977,-153.9713702,0.00024567,2]
[329346537,1718263854993,-150.0,0.00024575,2]
[329346538,1718263855012,-459.01347832,0.00024588,2]
[329346539,1718263855025,-150.80916978,0.00024596,2]
[329346540,1718263855038,-150.0,0.00024609,2]
[329346541,1718263855050,-150.0,0.00024615,2]
[329346542,1718263855063,-150.0,0.00024653,2]
[329346543,1718263855073,-151.54705947,0.00024653,2]
[329346544,1718263855085,-150.0,0.00024654,2]
[329346545,1718263855096,-1000.0,0.00024658,2]
[329346546,1718263855110,-1000.0,0.00024658,2]
[329346547,1718263855125,-1000.0,0.00024658,2]
[329346548,1718263855150,-1000.0,0.00024658,2]
[329346549,1718263855171,-1000.0,0.00024658,2]
[329346550,1718263855183,-1000.0,0.00024658,2]
[329346551,1718263855198,-1000.0,0.00024658,2]
[329346552,1718263855240,-1000.0,0.00024658,2]
[329346553,1718263855266,-691.0,0.00024658,2]
[329346554,1718263855281,-151.0,0.00024658,7]
[329346555,1718263855302,-151.0,0.00024658,7]
[329346556,1718263855327,-150.0,0.00024658,2]
[329346557,1718263855344,-150.0,0.00024669,2]
[329346558,1718263855368,-1500.0,0.00024669,2]
[329346559,1718263855378,-1000.0,0.000247,2]
[329346560,1718263855388,-153.75465886,0.00024727,2]
[329346561,1718263855402,-150.0,0.00024732,2]
[329346562,1718263855434,-150.0,0.00024746,2]
[329346563,1718263855447,-150.0,0.00024749,2]
[329346564,1718263855477,-14378.67204869,0.0002475,2]